lending/lending_fUSD_20251114
["ID","MTS","AMOUNT","RATE_DAILY","PERIOD"]
[393916723,1763094267773,-160.034348,0.00035616,31]
[393916724,1763094267812,-151.0,0.00035616,31]
[393916725,1763094267852,-153.83247,0.00035616,31]
[393916726,1763094267894,-500.0,0.00035616,30]
[393916727,1763094267938,-500.0,0.00035616,30]
[393916728,1763094267983,-500.0,0.00035616,30]
[393916729,1763094268029,-500.0,0.00035616,30]
[393916730,1763094268075,-500.0,0.00035616,30]
[393916731,1763094268119,-500.0,0.00035616,30]
[393916732,1763094268163,-500.0,0.00035616,30]
[393916733,1763094268207,-500.0,0.00035616,30]
[393916734,1763094268251,-500.0,0.00035616,30]
[393916735,1763094268293,-500.0,0.00035616,30]
[393916736,1763094268337,-405.32879468,0.00035616,30]
[393916737,1763094268383,-151.000003,0.00035616,31]
[393916738,1763094268431,-151.0,0.00035616,31]
[393916739,1763094268480,-151.0,0.00035616,31]
[393916740,1763094268529,-304.120822,0.00035616,31]
[393916741,1763094268575,-304.120822,0.00035616,31]
[393916742,1763094268615,-304.120822,0.00035616,31]
[393916743,1763094268659,-304.120822,0.00035616,31]
[393916744,1763094268701,-155.829455,0.00035616,31]
[393916745,1763094268741,-153.135579,0.00035616,31]
[393916746,1763094268782,-151.0,0.00035616,31]
[393916747,1763094268824,-151.0,0.00035616,31]
[393916748,1763094268865,-151.0,0.00035616,31]
[393916749,1763094268909,-928.041326,0.00035616,31]
[393916750,1763094268954,-928.041326,0.00035616,31]
[393916751,1763094269001,-928.041326,0.00035616,31]
[393916752,1763094269044,-928.041326,0.00035616,31]
[393916753,1763094269089,-151.0,0.00035616,31]
[393916754,1763094269133,-396.432982,0.00035616,31]
[393916755,1763094269177,-396.432982,0.00035616,31]
[393916756,1763094269219,-396.432982,0.00035616,31]
[393916757,1763094269263,-396.432982,0.00035616,31]
[393916758,1763094269307,-151.0,0.00035616,31]
[393916759,1763094269350,-151.0,0.00035616,31]
[393916760,1763094269392,-151.0,0.00035616,31]
[393916761,1763094269435,-151.0,0.00035616,31]
[393916762,1763094269478,-151.0,0.00035616,31]
[393916763,1763094269521,-152.888287,0.00035616,31]
[393916764,1763094269564,-151.0,0.00035616,31]
[393916765,1763094269604,-151.0,0.00035616,31]
[393916766,1763094269646,-151.000003,0.00035616,31]
[393916767,1763094269687,-151.0,0.00035616,31]
[393916768,1763094269729,-255.683847,0.00035616,31]
[393916769,1763094269770,-255.683847,0.00035616,31]
[393916770,1763094269814,-255.683847,0.00035616,31]
[393916771,1763094269855,-151.0,0.00035616,31]
[393916772,1763094269900,-255.683847,0.00035616,31]
[393916773,1763094269943,-151.000014,0.00035616,31]
[393916774,1763094269988,-151.0,0.00035616,31]
[393916775,1763094270037,-151.0,0.00035616,31]
[393916776,1763094270080,-151.0,0.00035616,31]
[393916777,1763094270130,-151.0,0.00035616,31]
[393916778,1763094270177,-151.0,0.00035616,31]
[393916779,1763094270222,-151.0,0.00035616,31]
[393916780,1763094270265,-151.0,0.00035616,31]
[393916781,1763094270309,-158.726842,0.00035616,31]
[393916782,1763094270351,-151.0,0.00035616,31]
[393916783,1763094270394,-151.0,0.00035616,31]
[393916784,1763094270443,-184.71043,0.00035616,31]
[393916785,1763094270486,-153.930517,0.00035616,31]
[393916786,1763094270529,-199.970098,0.00035616,31]
[393916787,1763094270571,-199.970098,0.00035616,31]
[393916788,1763094270612,-199.970098,0.00035616,31]
[393916789,1763094270651,-151.0,0.00035616,31]
[393916790,1763094270690,-199.970098,0.00035616,31]
[393916791,1763094270730,-162.039364,0.00035616,31]
[393916792,1763094270771,-151.0,0.00035616,31]
[393916793,1763094270810,-151.647902,0.00035616,31]
[393916794,1763094270850,-153.80112,0.00035616,30]
[393916795,1763094270892,-583.213915,0.00035616,30]
[393916796,1763094270935,-583.213915,0.00035616,30]
[393916797,1763094270977,-583.213915,0.00035616,30]
[393916798,1763094271020,-151.0,0.00035616,31]
[393916799,1763094271062,-583.213915,0.00035616,30]
[393916800,1763094271103,-151.0,0.00035616,31]
[393916801,1763094271144,-151.0,0.00035616,31]
[393916802,1763094271184,-151.0,0.00035616,31]
[393916803,1763094271225,-251.953838,0.00035616,31]
[393916804,1763094271266,-151.0,0.00035616,31]
[393916805,1763094271310,-151.0,0.00035616,31]
[393916806,1763094271352,-151.0,0.00035616,31]
[393916807,1763094271394,-151.0,0.00035616,31]
[393916808,1763094271436,-151.0,0.00035616,31]
[393916809,1763094271478,-151.0,0.00035616,31]
[393916810,1763094271520,-151.0,0.00035616,31]
[393916811,1763094271560,-151.0,0.00035616,31]
[393916812,1763094271602,-151.556258,0.00035616,31]
[393916813,1763094271794,-151.0,0.00035616,31]
[393916814,1763094271843,-999.0,0.00035616,120]
[393916815,1763094271889,-162.305649,0.00035616,31]
[393916816,1763094271934,-162.305649,0.00035616,31]
[393916817,1763094271977,-162.305649,0.00035616,31]
[393916818,1763094272022,-162.305649,0.00035616,31]
[393916819,1763094272067,-151.0,0.00035616,31]
[393916820,1763094272110,-151.0,0.00035616,31]
[393916821,1763094272153,-151.0,0.00035616,31]
[393916822,1763094272200,-286.838559,0.00035616,31]
[393916823,1763094272244,-171.514953,0.00035616,31]
[393916824,1763094272287,-151.0,0.00035616,31]
[393916825,1763094272330,-151.314811,0.00035616,31]
[393916826,1763094272372,-151.0,0.00035616,31]
[393916827,1763094272417,-546.4949,0.00035888,30]
[393916828,1763094272459,-444.28,0.000359,30]
[393916829,1763094272500,-200.0,0.00036,120]
[393916830,1763094272540,-185.0,0.00036,120]
[393916831,1763094272580,-316.6275161,0.00036,30]
[393916832,1763094272618,-151.0,0.00036,31]
[393916833,1763094272656,-151.0,0.00036,31]
[393916834,1763094272694,-274.944818,0.00036,31]
[393916835,1763094272734,-193.063553,0.00036,31]
[393916836,1763094272775,-151.0,0.00036,31]
[393916837,1763094272815,-152.31163,0.00036,31]
[393916838,1763094272856,-151.0,0.00036,31]
[393916839,1763094272899,-151.0,0.00036,31]
[393916840,1763094272942,-167.606023,0.00036,31]
[393916841,1763094272984,-151.0,0.00036,31]
[393916842,1763094273029,-151.0,0.00036,31]
[393916843,1763094273074,-151.0,0.00036,31]
[393916844,1763094273118,-151.0,0.00036,31]
[393916845,1763094273162,-151.0,0.00036,31]
[393916846,1763094273209,-163.734461,0.00036,31]
[393916847,1763094273251,-151.0,0.00036,31]
[393916848,1763094273296,-151.0,0.00036,31]
[393916849,1763094273339,-151.0,0.00036,31]
[393916850,1763094273381,-192.232396,0.00036,31]
[393916851,1763094273425,-153.816156,0.00036,31]
[393916852,1763094273468,-151.0,0.00036,31]
[393916853,1763094273511,-177.24018,0.00036,31]
[393916854,1763094273554,-177.24018,0.00036,31]
[393916855,1763094273598,-151.0,0.00036,31]
[393916856,1763094273641,-177.24018,0.00036,31]
[393916857,1763094273683,-177.24018,0.00036,31]
[393916858,1763094273726,-371.015786,0.00036,31]
[393916859,1763094273773,-371.015786,0.00036,31]
[393916860,1763094273822,-371.015786,0.00036,31]
[393916861,1763094273873,-196.059949,0.00036,31]
[393916862,1763094273919,-371.015786,0.00036,31]
[393916863,1763094273962,-50000.0,0.00036017,30]
[393916864,1763094274005,-540.36323,0.00036043,30]
[393916865,1763094274052,-500.0,0.00036043,30]
[393916866,1763094274097,-500.0,0.00036043,30]
[393916867,1763094274146,-798.05480087,0.00036043,30]
[393916868,1763094274195,-496.74185545,0.00036043,30]
[393916869,1763094274238,-500.0,0.00036043,30]
[393916870,1763094274282,-500.0,0.00036043,30]
[393916871,1763094274325,-510.91229393,0.00036043,30]
[393916872,1763094274367,-500.0,0.00036043,30]
[393916873,1763094274408,-506.36118696,0.00036043,30]
[393916874,1763094274451,-641.18481589,0.00036043,30]
[393916875,1763094274493,-500.0,0.00036043,30]
[393916876,1763094274534,-800.61953907,0.00036043,30]
[393916877,1763094274573,-515.86484307,0.00036043,30]
[393916878,1763094274615,-497.20705416,0.00036043,30]
[393916879,1763094274654,-500.0,0.00036043,30]
[393916880,1763094274694,-546.4949,0.00036088,30]
[393916881,1763094274736,-163.050115,0.00036207,31]
[393916882,1763094274778,-278.787234,0.00036207,31]
[393916883,1763094274820,-151.0,0.00036207,31]
[393916884,1763094274864,-151.0,0.00036207,31]
[393916885,1763094274909,-160.32468,0.00036207,31]
[393916886,1763094274954,-151.0,0.00036207,31]
[393916887,1763094275000,-151.0,0.00036207,31]
[393916888,1763094275045,-151.0,0.00036207,31]
[393916889,1763094275088,-255.683847,0.00036207,31]
[393916890,1763094275131,-255.683847,0.00036207,31]
[393916891,1763094275174,-255.683847,0.00036207,31]
[393916892,1763094275216,-155.619297,0.00036207,31]
[393916893,1763094275258,-255.683847,0.00036207,31]
[393916894,1763094275302,-546.4949,0.00036288,30]
[393916895,1763094275342,-151.0,0.00036288,31]
[393916896,1763094275381,-151.0,0.00036288,31]
[393916897,1763094275422,-162.305649,0.00036288,31]
[393916898,1763094275462,-162.305649,0.00036288,31]
[393916899,1763094275503,-162.305649,0.00036288,31]
[393916900,1763094275543,-162.305649,0.00036288,31]
[393916901,1763094275595,-175.866737,0.00036288,31]
[393916902,1763094275641,-161.165719,0.00036288,31]
[393916903,1763094275684,-151.0,0.00036288,31]
[393916904,1763094275732,-151.0,0.00036334,31]
[393916905,1763094275781,-151.000011,0.00036334,31]
[393916906,1763094275836,-583.213915,0.00036334,30]
[393916907,1763094275889,-583.213915,0.00036334,30]
[393916908,1763094275942,-583.213915,0.00036334,30]
[393916909,1763094275995,-151.0,0.00036334,31]
[393916910,1763094276048,-583.213915,0.00036334,30]
[393916911,1763094276097,-151.000004,0.00036334,31]
[393916912,1763094276148,-151.0,0.00036334,31]
[393916913,1763094276195,-157.225271,0.00036334,31]
[393916914,1763094276243,-151.0,0.00036334,31]
[393916915,1763094276289,-151.0,0.00036334,31]
[393916916,1763094276337,-213.396741,0.00036334,31]
[393916917,1763094276386,-161.128014,0.00036334,31]
[393916918,1763094276436,-151.0,0.00036334,31]
[393916919,1763094276486,-290.44039276,0.00036334,31]
[393916920,1763094276534,-151.0,0.00036334,31]
[393916921,1763094276588,-151.0,0.0003641,31]
[393916922,1763094276634,-151.0,0.0003641,31]
[393916923,1763094276679,-151.0,0.0003641,31]
[393916924,1763094276719,-153.737281,0.0003641,31]
[393916925,1763094276762,-151.0,0.0003641,31]
[393916926,1763094276809,-151.0,0.0003641,31]
[393916927,1763094276850,-157.711095,0.0003641,31]
[393916928,1763094276892,-162.822141,0.0003641,31]
[393916929,1763094276937,-157.03069,0.0003641,31]
[393916930,1763094276985,-199.970098,0.0003641,31]
[393916931,1763094277035,-199.970098,0.0003641,31]
[393916932,1763094277082,-199.970098,0.0003641,31]
[393916933,1763094277127,-199.970098,0.0003641,31]
[393916934,1763094277173,-176.929993,0.0003641,31]
[393916935,1763094277219,-151.0,0.0003641,31]
[393916936,1763094277263,-151.0,0.0003641,31]
[393916937,1763094277308,-999.0,0.00036438,120]
[393916938,1763094277352,-546.4949,0.00036488,30]
[393916939,1763094277397,-151.0,0.00036631,31]
[393916940,1763094277440,-153.873839,0.00036631,31]
[393916941,1763094277483,-151.0,0.00036631,31]
[393916942,1763094277526,-151.0,0.00036631,31]
[393916943,1763094277570,-151.0,0.00036631,31]
[393916944,1763094277612,-156.962966,0.00036631,31]
[393916945,1763094277655,-151.0,0.00036631,31]
[393916946,1763094277697,-154.92541,0.00036631,31]
[393916947,1763094277740,-151.0,0.00036637,31]
[393916948,1763094277785,-304.120822,0.00036637,31]
[393916949,1763094277832,-304.120822,0.00036637,31]
[393916950,1763094277881,-304.120822,0.00036637,31]
[393916951,1763094277930,-304.120822,0.00036637,31]
[393916952,1763094277979,-151.0,0.00036637,31]
[393916953,1763094278032,-151.0,0.00036637,31]
[393916954,1763094278083,-153.777328,0.00036637,31]
[393916955,1763094278135,-151.0,0.00036637,31]
[393916956,1763094278184,-928.041326,0.00036637,31]
[393916957,1763094278235,-928.041326,0.00036637,31]
[393916958,1763094278280,-928.041326,0.00036637,31]
[393916959,1763094278324,-928.041326,0.00036637,31]
[393916960,1763094278369,-151.0,0.00036637,31]
[393916961,1763094278415,-396.432982,0.00036637,31]
[393916962,1763094278460,-396.432982,0.00036637,31]
[393916963,1763094278506,-396.432982,0.00036637,31]
[393916964,1763094278552,-396.432982,0.00036637,31]
[393916965,1763094278599,-546.4949,0.00036688,30]
[393916966,1763094278648,-546.4949,0.00036888,30]
[393916967,1763094278695,-212.0,0.0003689,30]
[393916968,1763094278741,-1000.00000001,0.00036929,30]
[393916969,1763094278789,-1000.00000001,0.00036929,30]
[393916970,1763094278839,-1995.36512846,0.00036929,30]
[393916971,1763094278889,-1007.61641154,0.00036929,30]
[393916972,1763094278938,-1848.06947429,0.00036929,30]
[393916973,1763094278987,-1786.14598318,0.00036929,30]
[393916974,1763094279042,-1017.45328069,0.00036929,30]
[393916975,1763094279090,-1002.15813114,0.00036929,30]
[393916976,1763094279138,-1018.1905625,0.00036929,30]
[393916977,1763094279184,-1000.0,0.00036929,30]
[393916978,1763094279231,-1000.19740678,0.00036929,30]
[393916979,1763094279277,-1000.0,0.00036929,30]
[393916980,1763094279320,-1000.0,0.00036929,30]
[393916981,1763094279364,-1000.00000001,0.00036929,30]
[393916982,1763094279407,-500.0,0.00037,30]
[393916983,1763094279449,-50000.0,0.00037,30]
[393916984,1763094279491,-546.4949,0.00037088,30]
[393916985,1763094279533,-478.82688331,0.000371,30]
[393916986,1763094279853,-151.0,0.0003716,31]
[393916987,1763094279906,-151.0,0.0003716,31]
[393916988,1763094279953,-151.0,0.0003716,31]
[393916989,1763094280001,-151.0,0.0003716,31]
[393916990,1763094280049,-151.0,0.0003716,31]
[393916991,1763094280093,-151.0,0.0003716,31]
[393916992,1763094280137,-151.0,0.0003716,31]
[393916993,1763094280183,-151.0,0.0003716,31]
[393916994,1763094280228,-151.0,0.0003716,31]
[393916995,1763094280273,-151.0,0.0003716,31]
[393916996,1763094280316,-152.802186,0.0003716,31]
[393916997,1763094280358,-151.0,0.0003716,31]
[393916998,1763094280400,-151.0,0.0003716,31]
[393916999,1763094280442,-151.0,0.0003716,31]
[393917000,1763094280483,-177.24018,0.0003716,31]
[393917001,1763094280524,-177.24018,0.0003716,31]
[393917002,1763094280565,-177.24018,0.0003716,31]
[393917003,1763094280605,-177.24018,0.0003716,31]
[393917004,1763094280644,-371.015786,0.0003716,31]
[393917005,1763094280682,-371.015786,0.0003716,31]
[393917006,1763094280722,-371.015786,0.0003716,31]
[393917007,1763094280761,-371.015786,0.0003716,31]
[393917008,1763094280800,-444.28,0.000372,30]
[393917009,1763094280842,-157.91277563,0.000372,120]
[393917010,1763094280884,-157.9127756,0.000372,120]
[393917011,1763094280926,-157.9127756,0.000372,120]
[393917012,1763094280972,-157.9127756,0.000372,120]
[393917013,1763094281021,-402.31180347,0.0003726,120]
[393917014,1763094281069,-546.4949,0.00037288,30]
[393917015,1763094281114,-206.37744859,0.00037455,120]
[393917016,1763094281157,-205.42394002,0.00037455,120]
[393917017,1763094281200,-546.4949,0.00037488,30]
[393917018,1763094281242,-546.4949,0.00037688,30]
[393917019,1763094281288,-181.9,0.00037808,60]
[393917020,1763094281329,-181.91,0.00037839,80]
[393917021,1763094281367,-181.91,0.00037869,100]
[393917022,1763094281406,-546.4949,0.00037888,30]
[393917023,1763094281445,-181.91,0.000379,120]
[393917024,1763094281484,-200.0,0.00038,120]
[393917025,1763094281523,-628.0,0.00038,120]
[393917026,1763094281562,-50000.0,0.00038,35]
[393917027,1763094281602,-151.0,0.00038,31]
[393917028,1763094281642,-151.0,0.00038,31]
[393917029,1763094281682,-151.000015,0.00038,31]
[393917030,1763094281722,-151.0,0.00038,31]
[393917031,1763094281761,-151.0,0.00038,31]
[393917032,1763094281802,-153.486405,0.00038,31]
[393917033,1763094281844,-304.120822,0.00038,31]
[393917034,1763094281884,-304.120822,0.00038,31]
[393917035,1763094281927,-304.120822,0.00038,31]
[393917036,1763094281968,-304.120822,0.00038,31]
[393917037,1763094282010,-151.0,0.00038,31]
[393917038,1763094282051,-151.0,0.00038,31]
[393917039,1763094282090,-928.041326,0.00038,31]
[393917040,1763094282128,-928.041326,0.00038,31]
[393917041,1763094282165,-928.041326,0.00038,31]
[393917042,1763094282206,-928.041326,0.00038,31]
[393917043,1763094282244,-151.0,0.00038,31]
[393917044,1763094282282,-396.432982,0.00038,31]
[393917045,1763094282320,-396.432982,0.00038,31]
[393917046,1763094282358,-396.432982,0.00038,31]
[393917047,1763094282399,-396.432982,0.00038,31]
[393917048,1763094282436,-153.591244,0.00038,31]
[393917049,1763094282476,-151.0,0.00038,31]
[393917050,1763094282515,-151.0,0.00038,31]
[393917051,1763094282552,-151.0,0.00038,31]
[393917052,1763094282589,-224.76171,0.00038,31]
[393917053,1763094282625,-255.683847,0.00038,31]
[393917054,1763094282662,-255.683847,0.00038,31]
[393917055,1763094282699,-255.683847,0.00038,31]
[393917056,1763094282735,-255.683847,0.00038,31]
[393917057,1763094282772,-151.0,0.00038,31]
[393917058,1763094282810,-151.0,0.00038,31]
[393917059,1763094282849,-246.661869,0.00038,31]
[393917060,1763094282890,-215.238784,0.00038,31]
[393917061,1763094282932,-151.0,0.00038,31]
[393917062,1763094282973,-199.970098,0.00038,31]
[393917063,1763094283018,-199.970098,0.00038,31]
[393917064,1763094283059,-199.970098,0.00038,31]
[393917065,1763094283099,-151.0,0.00038,31]
[393917066,1763094283138,-199.970098,0.00038,31]
[393917067,1763094283180,-583.213915,0.00038,30]
[393917068,1763094283223,-583.213915,0.00038,30]
[393917069,1763094283265,-583.213915,0.00038,30]
[393917070,1763094283305,-151.0,0.00038,31]
[393917071,1763094283345,-583.213915,0.00038,30]
[393917072,1763094283385,-151.0,0.00038,31]
[393917073,1763094283425,-151.0,0.00038,31]
[393917074,1763094283466,-151.0,0.00038,31]
[393917075,1763094283506,-151.0,0.00038,31]
[393917076,1763094283547,-151.0,0.00038,31]
[393917077,1763094283589,-162.305649,0.00038,31]
[393917078,1763094283629,-162.305649,0.00038,31]
[393917079,1763094283669,-162.305649,0.00038,31]
[393917080,1763094283709,-162.305649,0.00038,31]
[393917081,1763094283752,-151.0,0.00038,31]
[393917082,1763094283929,-151.0,0.00038,31]
[393917083,1763094283974,-151.0,0.00038,31]
[393917084,1763094284018,-546.4949,0.00038088,30]
[393917085,1763094284060,-240.14436073,0.000381,33]
[393917086,1763094284103,-546.4949,0.00038288,30]
[393917087,1763094284152,-502.40013983,0.000383,30]
[393917088,1763094284195,-152.94,0.00038302,60]
[393917089,1763094284238,-155.37,0.00038302,60]
[393917090,1763094284281,-152.94,0.00038402,120]
[393917091,1763094284323,-155.37,0.00038402,120]
[393917092,1763094284365,-546.4949,0.00038488,30]
[393917093,1763094284411,-152.94158127,0.00038502,120]
[393917094,1763094284452,-155.37,0.00038502,120]
[393917095,1763094284496,-155.37,0.00038602,120]
[393917096,1763094284541,-546.4949,0.00038688,30]
[393917097,1763094284581,-500.0,0.000387,120]
[393917098,1763094284621,-500.0,0.000387,120]
[393917099,1763094284660,-500.0,0.000387,120]
[393917100,1763094284701,-500.0,0.000387,120]
[393917101,1763094284743,-500.0,0.000387,120]
[393917102,1763094284785,-500.0,0.000387,120]
[393917103,1763094284826,-500.0,0.000387,120]
[393917104,1763094284866,-500.0,0.000387,120]
[393917105,1763094284906,-500.0,0.000387,120]
[393917106,1763094284949,-500.0,0.000387,120]
[393917107,1763094284995,-444.28,0.000387,30]
[393917108,1763094285050,-155.37,0.00038702,120]
[393917109,1763094285099,-904.57339635,0.000388,60]
[393917110,1763094285144,-163.47460334,0.000388,120]
[393917111,1763094285189,-163.47460316,0.000388,120]
[393917112,1763094285231,-163.47460316,0.000388,120]
[393917113,1763094285273,-163.47460316,0.000388,120]
[393917114,1763094285316,-163.47460316,0.000388,120]
[393917115,1763094285358,-163.47460316,0.000388,120]
[393917116,1763094285400,-163.47460316,0.000388,120]
[393917117,1763094285441,-163.47460316,0.000388,120]
[393917118,1763094285482,-163.47460316,0.000388,120]
[393917119,1763094285522,-155.37,0.00038802,120]
[393917120,1763094285560,-303.3379229,0.0003884,50]
[393917121,1763094285599,-410.15049853,0.000389,31]
[393917122,1763094285641,-155.37,0.00038902,120]
[393917123,1763094285683,-212.0,0.0003891,30]
[393917124,1763094285727,-888.98908207,0.00039,120]
[393917125,1763094285771,-191.41362249,0.00039,30]
[393917126,1763094285816,-185.0,0.00039,39]
[393917127,1763094285857,-154.730126,0.00039,120]
[393917128,1763094285902,-153.837573,0.00039,120]
[393917129,1763094285946,-190.622424,0.00039,120]
[393917130,1763094285990,-151.0,0.00039,120]
[393917131,1763094286038,-151.0,0.00039,120]
[393917132,1763094286083,-151.0,0.00039,120]
[393917133,1763094286125,-283.71336,0.00039,120]
[393917134,1763094286169,-236.5818,0.00039,120]
[393917135,1763094286211,-157.374602,0.00039,120]
[393917136,1763094286252,-151.0,0.00039,120]
[393917137,1763094286293,-151.0,0.00039,120]
[393917138,1763094286334,-153.909063,0.00039,120]
[393917139,1763094286375,-173.55493983,0.00039,120]
[393917140,1763094286416,-177.24018,0.00039,120]
[393917141,1763094286458,-177.24018,0.00039,120]
[393917142,1763094286500,-177.24018,0.00039,120]
[393917143,1763094286540,-177.24018,0.00039,120]
[393917144,1763094286582,-371.015786,0.00039,95]
[393917145,1763094286622,-371.015786,0.00039,95]
[393917146,1763094286663,-371.015786,0.00039,95]
[393917147,1763094286713,-371.015786,0.00039,95]
[393917148,1763094286757,-155.37,0.00039002,120]
[393917149,1763094286801,-546.4949,0.00039088,30]
[393917150,1763094286844,-155.37,0.00039102,120]
[393917151,1763094286888,-1326.58,0.000392,30]
[393917152,1763094286931,-1802.97,0.000392,30]
[393917153,1763094286975,-155.37,0.00039202,120]
[393917154,1763094287056,-546.4949,0.00039288,30]
[393917155,1763094287101,-155.37,0.00039302,120]
[393917156,1763094287144,-155.37,0.00039402,120]
[393917157,1763094287186,-546.4949,0.00039488,30]
[393917158,1763094287229,-155.37,0.00039502,120]
[393917159,1763094287270,-155.37,0.00039602,120]
[393917160,1763094287309,-206.37744859,0.00039647,120]
[393917161,1763094287347,-205.42394002,0.00039647,120]
[393917162,1763094287384,-546.4949,0.00039688,30]
[393917163,1763094287423,-155.37,0.00039702,120]
[393917164,1763094287461,-848.9,0.00039798,30]
[393917165,1763094287499,-155.37,0.00039802,120]
[393917166,1763094287535,-546.4949,0.00039888,30]
[393917167,1763094287572,-444.28,0.000399,30]
[393917168,1763094287610,-155.37,0.00039902,120]
[393917169,1763094287651,-602.44792329,0.00039999,31]
[393917170,1763094287689,-500.0,0.00039999,31]
[393917171,1763094287726,-455.19348261,0.00039999,31]
[393917172,1763094287764,-401.00935499,0.00039999,31]
[393917173,1763094287804,-500.0,0.00039999,31]
[393917174,1763094287848,-500.0,0.00039999,31]
[393917175,1763094287891,-443.0473995,0.00039999,31]
[393917176,1763094287943,-500.0,0.00039999,31]
[393917177,1763094287997,-500.0,0.00039999,31]
[393917178,1763094288055,-583.77771836,0.00039999,31]
[393917179,1763094288109,-500.0,0.00039999,31]
[393917180,1763094288153,-1109.36534981,0.0004,30]
[393917181,1763094288199,-477.12749073,0.0004,30]
[393917182,1763094288240,-433.70918279,0.0004,30]
[393917183,1763094288281,-445.52226553,0.0004,120]
[393917184,1763094288320,-779.96748717,0.0004,30]
[393917185,1763094288358,-292.94211113,0.0004,120]
[393917186,1763094288396,-205.5456037,0.0004,30]
[393917187,1763094288433,-271.1152492,0.0004,120]
[393917188,1763094288472,-1077.05784937,0.0004,120]
[393917189,1763094288512,-522.05907498,0.0004,120]
[393917190,1763094288552,-1035.76509248,0.0004,120]
[393917191,1763094288590,-789.64386141,0.0004,120]
[393917192,1763094288630,-391.02436873,0.0004,30]
[393917193,1763094288668,-321.53856127,0.0004,100]
[393917194,1763094288709,-277.82666951,0.0004,30]
[393917195,1763094288751,-1070.83907452,0.0004,30]
[393917196,1763094288797,-557.19318096,0.0004,30]
[393917197,1763094288844,-177.80029145,0.0004,120]
[393917198,1763094288888,-515.0,0.0004,30]
[393917199,1763094288934,-235.18692952,0.0004,120]
[393917200,1763094288977,-900.0,0.0004,120]
[393917201,1763094289019,-200.0,0.0004,120]
[393917202,1763094289061,-2006.53614171,0.0004,120]
[393917203,1763094289104,-435.28,0.0004,120]
[393917204,1763094289146,-583.09396226,0.0004,120]
[393917205,1763094289188,-935.8,0.0004,30]
[393917206,1763094289231,-500.0,0.0004,30]
[393917207,1763094289274,-500.0,0.0004,30]
[393917208,1763094289317,-462.94,0.0004,120]
[393917209,1763094289361,-708.76,0.0004,120]
[393917210,1763094289404,-478.82688331,0.0004,120]
[393917211,1763094289446,-478.82688331,0.0004,30]
[393917212,1763094289489,-182.27,0.0004,120]
[393917213,1763094289529,-207.95,0.0004,120]
[393917214,1763094289569,-556.89,0.0004,120]
[393917215,1763094289608,-520.45,0.0004,120]
[393917216,1763094289646,-22500.0,0.0004,120]
[393917217,1763094289686,-1040.32,0.0004,120]
[393917218,1763094289726,-567.33047191,0.0004,30]
[393917219,1763094289765,-190.54,0.0004,120]
[393917220,1763094289806,-218.3,0.0004,120]
[393917221,1763094289847,-786.23,0.0004,120]
[393917222,1763094289888,-1107.37,0.0004,120]